[Event "*** SCC Grand Prix: Titled Tuesday Blitz"]
[Site "Chess.com"]
[Date "2020.08.04"]
[Round "4"]
[White "Mbneu"]
[Black "maxip32"]
[Result "0-1"]
[WhiteElo "2253"]
[BlackElo "2466"]
[TimeControl "180+1"]
[EndTime "14:22:56 PDT"]
[Termination "maxip32 won on time"]

1. d4 {[%clk 0:03:00.9]} 1... Nf6 {[%clk 0:02:59.6]} 2. c4 {[%clk 0:03:01.4]}
2... g6 {[%clk 0:02:59.9]} 3. Nc3 {[%clk 0:03:01.2]} 3... Bg7 {[%clk 0:03:00.8]}
4. e4 {[%clk 0:03:00.5]} 4... d6 {[%clk 0:03:01.4]} 5. f4 {[%clk 0:03:00.9]}
5... c5 {[%clk 0:03:00.8]} 6. d5 {[%clk 0:02:59.5]} 6... O-O {[%clk 0:03:00.5]}
7. Nf3 {[%clk 0:03:00.1]} 7... e6 {[%clk 0:03:01]} 8. Be2 {[%clk 0:02:59.6]}
8... exd5 {[%clk 0:03:01]} 9. cxd5 {[%clk 0:03:00.5]} 9... Bg4 {[%clk
0:03:00.6]} 10. O-O {[%clk 0:02:59.5]} 10... Nbd7 {[%clk 0:03:00.1]} 11. Re1
{[%clk 0:02:59.2]} 11... Qa5 {[%clk 0:02:58.3]} 12. h3 {[%clk 0:02:44.2]} 12...
Bxf3 {[%clk 0:02:58.2]} 13. Bxf3 {[%clk 0:02:44.3]} 13... Ne8 {[%clk 0:02:59.1]}
14. Re2 {[%clk 0:02:29.9]} 14... b5 {[%clk 0:02:58.9]} 15. Qc2 {[%clk
0:02:08.6]} 15... b4 {[%clk 0:02:55.3]} 16. Nd1 {[%clk 0:02:07.9]} 16... Nc7
{[%clk 0:02:55.1]} 17. Ne3 {[%clk 0:01:59.5]} 17... Nb5 {[%clk 0:02:53.7]} 18.
Nc4 {[%clk 0:01:59.1]} 18... Qa6 {[%clk 0:02:40.4]} 19. Be3 {[%clk 0:01:47.4]}
19... Nb6 {[%clk 0:02:39.2]} 20. e5 {[%clk 0:01:37.8]} 20... Nd4 {[%clk
0:01:50.4]} 21. Bxd4 {[%clk 0:01:33.1]} 21... Nxc4 {[%clk 0:01:48.5]} 22. Bf2
{[%clk 0:01:03.3]} 22... dxe5 {[%clk 0:01:48.6]} 23. Rc1 {[%clk 0:00:51.8]}
23... Nxb2 {[%clk 0:01:18.5]} 24. fxe5 {[%clk 0:00:40]} 24... Nd3 {[%clk
0:01:14.3]} 25. Rd1 {[%clk 0:00:29.2]} 25... Nxf2 {[%clk 0:01:08.2]} 26. Kxf2
{[%clk 0:00:25.8]} 26... c4 {[%clk 0:01:07.9]} 27. Kg1 {[%clk 0:00:21.7]} 27...
Rfe8 {[%clk 0:01:05.7]} 28. e6 {[%clk 0:00:19.1]} 28... fxe6 {[%clk 0:01:03.9]}
29. dxe6 {[%clk 0:00:18.5]} 29... Rac8 {[%clk 0:01:01.6]} 30. Bd5 {[%clk
0:00:09.1]} 30... Re7 {[%clk 0:00:57.1]} 31. Rf1 {[%clk 0:00:05.7]} 31... Qb5
{[%clk 0:00:33.7]} 32. Qe4 {[%clk 0:00:04.7]} 32... c3 {[%clk 0:00:30.8]} 33.
Rf7 {[%clk 0:00:03.3]} 33... Qc5+ {[%clk 0:00:25.9]} 34. Kh1 {[%clk 0:00:02.8]}
34... Rce8 {[%clk 0:00:24]} 35. Rxe7 {[%clk 0:00:02.3]} 35... Rxe7 {[%clk
0:00:24.2]} 36. Rf2 {[%clk 0:00:02.3]} 36... Bd4 {[%clk 0:00:20.7]} 37. Rf7
{[%clk 0:00:01.2]} 37... c2 {[%clk 0:00:21]} 0-1

[Event "*** SCC Grand Prix: Titled Tuesday Blitz"]
[Site "Chess.com"]
[Date "2020.08.04"]
[Round "4"]
[White "1977Ivan"]
[Black "pooh2012"]
[Result "1-0"]
[WhiteElo "2683"]
[BlackElo "2401"]
[TimeControl "180+1"]
[EndTime "14:22:57 PDT"]
[Termination "1977Ivan won on time"]

1. c4 {[%clk 0:03:00.9]} 1... e5 {[%clk 0:02:57.5]} 2. Nc3 {[%clk 0:03:01.2]}
2... d6 {[%clk 0:02:57.1]} 3. Nf3 {[%clk 0:02:58.5]} 3... f5 {[%clk 0:02:55.7]}
4. g3 {[%clk 0:02:54.4]} 4... Nf6 {[%clk 0:02:55.2]} 5. Bg2 {[%clk 0:02:54]}
5... Be7 {[%clk 0:02:55]} 6. d4 {[%clk 0:02:52.7]} 6... e4 {[%clk 0:02:54.9]} 7.
Ng5 {[%clk 0:02:53.3]} 7... c6 {[%clk 0:02:53.1]} 8. O-O {[%clk 0:02:49.3]} 8...
h6 {[%clk 0:02:52.5]} 9. Nh3 {[%clk 0:02:48.7]} 9... O-O {[%clk 0:02:53.1]} 10.
d5 {[%clk 0:02:48.3]} 10... cxd5 {[%clk 0:02:36.7]} 11. cxd5 {[%clk 0:02:22.4]}
11... a5 {[%clk 0:02:33.6]} 12. Be3 {[%clk 0:02:18.3]} 12... Ng4 {[%clk
0:02:30.3]} 13. Bd4 {[%clk 0:02:17.8]} 13... Bf6 {[%clk 0:02:27.6]} 14. f3
{[%clk 0:02:16]} 14... Bxd4+ {[%clk 0:02:12]} 15. Qxd4 {[%clk 0:02:15]} 15...
exf3 {[%clk 0:02:12.6]} 16. exf3 {[%clk 0:02:15.5]} 16... Nf6 {[%clk 0:02:05.4]}
17. Nf4 {[%clk 0:02:14.2]} 17... Bd7 {[%clk 0:01:56.1]} 18. Rfe1 {[%clk
0:02:13.5]} 18... Na6 {[%clk 0:01:55]} 19. Ne6 {[%clk 0:02:04.1]} 19... Bxe6
{[%clk 0:01:54.9]} 20. dxe6 {[%clk 0:02:05]} 20... Qe7 {[%clk 0:01:55.2]} 21.
Rad1 {[%clk 0:02:02.2]} 21... Rad8 {[%clk 0:01:51.4]} 22. f4 {[%clk 0:02:01.6]}
22... Nc5 {[%clk 0:01:50.9]} 23. Nd5 {[%clk 0:01:57]} 23... Nxd5 {[%clk
0:01:50.4]} 24. Bxd5 {[%clk 0:01:57.6]} 24... Kh8 {[%clk 0:01:47.3]} 25. Re3
{[%clk 0:01:56.7]} 25... b5 {[%clk 0:01:43.5]} 26. Rde1 {[%clk 0:01:53]} 26...
Kh7 {[%clk 0:01:31.9]} 27. Kg2 {[%clk 0:01:52.7]} 27... g5 {[%clk 0:01:30.7]}
28. Rf1 {[%clk 0:01:40.2]} 28... g4 {[%clk 0:01:28.5]} 29. Rh1 {[%clk
0:01:38.5]} 29... Rg8 {[%clk 0:01:18.9]} 30. h3 {[%clk 0:01:06.6]} 30... gxh3+
{[%clk 0:01:15.8]} 31. Rxh3 {[%clk 0:01:06]} 31... Rg6 {[%clk 0:01:15.8]} 32.
Kf2 {[%clk 0:00:55.4]} 32... Rc8 {[%clk 0:01:00]} 33. Rh5 {[%clk 0:00:53.5]}
33... Rf8 {[%clk 0:00:46.1]} 34. Re1 {[%clk 0:00:50.1]} 34... Nxe6 {[%clk
0:00:25.6]} 35. Qe3 {[%clk 0:00:45.5]} 35... Rff6 {[%clk 0:00:25.2]} 36. Rc1
{[%clk 0:00:31.3]} 36... Qg7 {[%clk 0:00:19.5]} 37. Rc8 {[%clk 0:00:29.3]} 37...
Rf8 {[%clk 0:00:04.7]} 38. Bxe6 {[%clk 0:00:24.3]} 38... Qxb2+ {[%clk
0:00:04.8]} 39. Kf3 {[%clk 0:00:21.8]} 39... Rxc8 {[%clk 0:00:02.7]} 40. Bxc8
{[%clk 0:00:21.2]} 1-0

[Event "*** SCC Grand Prix: Titled Tuesday Blitz"]
[Site "Chess.com"]
[Date "2020.08.04"]
[Round "4"]
[White "Alberquintin"]
[Black "Justinz"]
[Result "0-1"]
[WhiteElo "2464"]
[BlackElo "2354"]
[TimeControl "180+1"]
[EndTime "14:23:05 PDT"]
[Termination "Justinz won by resignation"]

1. c4 {[%clk 0:03:00.6]} 1... e5 {[%clk 0:02:59.5]} 2. Nc3 {[%clk 0:03:00.9]}
2... Nc6 {[%clk 0:02:58.6]} 3. Nf3 {[%clk 0:03:01.5]} 3... Nf6 {[%clk
0:02:57.2]} 4. g3 {[%clk 0:03:01.8]} 4... Bb4 {[%clk 0:02:56.2]} 5. Nd5 {[%clk
0:03:01.7]} 5... Bc5 {[%clk 0:02:55.5]} 6. Bg2 {[%clk 0:03:01.1]} 6... d6 {[%clk
0:02:52.9]} 7. O-O {[%clk 0:03:01.2]} 7... O-O {[%clk 0:02:52.9]} 8. e3 {[%clk
0:02:59.9]} 8... a6 {[%clk 0:02:48]} 9. d4 {[%clk 0:02:59.8]} 9... Ba7 {[%clk
0:02:47.8]} 10. h3 {[%clk 0:02:54.9]} 10... Bf5 {[%clk 0:02:43.8]} 11. dxe5
{[%clk 0:02:46.5]} 11... dxe5 {[%clk 0:02:40.1]} 12. b3 {[%clk 0:02:40.9]} 12...
Be4 {[%clk 0:02:30.3]} 13. Nc3 {[%clk 0:02:40.7]} 13... Bd3 {[%clk 0:02:28.4]}
14. Re1 {[%clk 0:02:40.5]} 14... Qd6 {[%clk 0:02:18.2]} 15. Bb2 {[%clk
0:02:00.9]} 15... Rad8 {[%clk 0:02:12.3]} 16. Nd5 {[%clk 0:01:55.1]} 16... Be4
{[%clk 0:02:01.3]} 17. Nc3 {[%clk 0:01:52.3]} 17... Qe7 {[%clk 0:01:41.5]} 18.
Qc1 {[%clk 0:01:43.8]} 18... Bd3 {[%clk 0:01:41.2]} 19. Rd1 {[%clk 0:01:28.3]}
19... e4 {[%clk 0:01:30.6]} 20. Nd2 {[%clk 0:01:23.5]} 20... Rfe8 {[%clk
0:01:26.6]} 21. a3 {[%clk 0:01:19.4]} 21... a5 {[%clk 0:01:24.3]} 22. Nb5 {[%clk
0:00:57.4]} 22... Bc5 {[%clk 0:00:56.5]} 23. Bc3 {[%clk 0:00:53.5]} 23... Rd7
{[%clk 0:00:52.2]} 24. Qb2 {[%clk 0:00:53.3]} 24... Red8 {[%clk 0:00:50.4]} 25.
Bxf6 {[%clk 0:00:52.1]} 25... gxf6 {[%clk 0:00:51.3]} 26. Nc3 {[%clk 0:00:49]}
26... f5 {[%clk 0:00:50.6]} 27. Nd5 {[%clk 0:00:46.9]} 27... Rxd5 {[%clk
0:00:50.7]} 28. cxd5 {[%clk 0:00:47.8]} 28... Rxd5 {[%clk 0:00:50.4]} 29. Nc4
{[%clk 0:00:41.8]} 29... h5 {[%clk 0:00:47.3]} 30. Qc3 {[%clk 0:00:32.7]} 30...
h4 {[%clk 0:00:45.7]} 31. gxh4 {[%clk 0:00:29.5]} 31... f4 {[%clk 0:00:43.5]}
32. Rd2 {[%clk 0:00:18.9]} 32... Qxh4 {[%clk 0:00:40.4]} 33. Rad1 {[%clk
0:00:18]} 33... fxe3 {[%clk 0:00:33.8]} 34. Nxe3 {[%clk 0:00:16.9]} 34... Rg5
{[%clk 0:00:32.8]} 35. Rxd3 {[%clk 0:00:17.2]} 35... exd3 {[%clk 0:00:32.2]} 36.
Qxd3 {[%clk 0:00:17.1]} 36... Qxh3 {[%clk 0:00:29.1]} 37. Kf1 {[%clk 0:00:16.3]}
37... Qe6 {[%clk 0:00:25]} 38. Bd5 {[%clk 0:00:12.7]} 38... Qf6 {[%clk
0:00:24.6]} 39. Qe4 {[%clk 0:00:11.7]} 39... Ne5 {[%clk 0:00:21.8]} 40. Ke2
{[%clk 0:00:09.3]} 40... c6 {[%clk 0:00:21.4]} 41. Bc4 {[%clk 0:00:09.3]} 41...
Nxc4 {[%clk 0:00:21]} 42. Nxc4 {[%clk 0:00:08.1]} 42... Qxf2+ {[%clk 0:00:19.8]}
43. Kd3 {[%clk 0:00:08.6]} 43... Rg3+ {[%clk 0:00:19.5]} 44. Ne3 {[%clk
0:00:09.1]} 44... Rxe3+ {[%clk 0:00:19.4]} 0-1

[Event "*** SCC Grand Prix: Titled Tuesday Blitz"]
[Site "Chess.com"]
[Date "2020.08.04"]
[Round "4"]
[White "BikingBrian"]
[Black "chess_rehab"]
[Result "1-0"]
[WhiteElo "2166"]
[BlackElo "2276"]
[TimeControl "180+1"]
[EndTime "14:23:06 PDT"]
[Termination "BikingBrian won by resignation"]

1. d4 {[%clk 0:03:00.9]} 1... d5 {[%clk 0:02:59.6]} 2. Bf4 {[%clk 0:02:59.4]}
2... Nf6 {[%clk 0:02:59.2]} 3. e3 {[%clk 0:02:59.8]} 3... c5 {[%clk 0:02:59.5]}
4. Nc3 {[%clk 0:02:59.2]} 4... Nc6 {[%clk 0:02:59.7]} 5. Nb5 {[%clk 0:02:59.5]}
5... e5 {[%clk 0:02:58.3]} 6. dxe5 {[%clk 0:03:00.4]} 6... a6 {[%clk 0:02:48.6]}
7. Nc3 {[%clk 0:02:41.9]} 7... Ng4 {[%clk 0:02:38.5]} 8. Qxd5 {[%clk 0:02:34.7]}
8... Be6 {[%clk 0:02:30.3]} 9. Qxd8+ {[%clk 0:02:30.2]} 9... Rxd8 {[%clk
0:02:31.2]} 10. Nf3 {[%clk 0:02:26.8]} 10... Nb4 {[%clk 0:02:30.2]} 11. Rc1
{[%clk 0:02:08.8]} 11... f6 {[%clk 0:02:18.9]} 12. h3 {[%clk 0:01:58.4]} 12...
Nxe5 {[%clk 0:02:05.8]} 13. Nxe5 {[%clk 0:01:51.6]} 13... fxe5 {[%clk
0:02:06.7]} 14. Bxe5 {[%clk 0:01:51.8]} 14... Be7 {[%clk 0:01:54.1]} 15. a3
{[%clk 0:01:38.1]} 15... Nd5 {[%clk 0:01:51]} 16. Be2 {[%clk 0:01:27.3]} 16...
Bf6 {[%clk 0:01:48.2]} 17. Bxf6 {[%clk 0:01:24.5]} 17... gxf6 {[%clk 0:01:49.1]}
18. Nxd5 {[%clk 0:01:21.8]} 18... Bxd5 {[%clk 0:01:50]} 19. O-O {[%clk
0:01:19.8]} 19... Rg8 {[%clk 0:01:50.6]} 20. f3 {[%clk 0:01:20.2]} 20... Bc6
{[%clk 0:01:38.2]} 21. Rcd1 {[%clk 0:01:17.9]} 21... Rc8 {[%clk 0:01:38.3]} 22.
Rd6 {[%clk 0:01:16.6]} 22... Ke7 {[%clk 0:01:36.9]} 23. Rfd1 {[%clk 0:01:16.3]}
23... Rg3 {[%clk 0:01:33]} 24. Kf2 {[%clk 0:01:15.1]} 24... Rcg8 {[%clk
0:01:32.2]} 25. Bf1 {[%clk 0:01:15.4]} 25... R8g5 {[%clk 0:01:17.5]} 26. Rd8
{[%clk 0:01:06.8]} 26... h5 {[%clk 0:01:16.2]} 27. h4 {[%clk 0:01:01.5]} 27...
Rg7 {[%clk 0:01:09.6]} 28. Rh8 {[%clk 0:01:00.9]} 28... Bb5 {[%clk 0:00:58.6]}
29. c4 {[%clk 0:00:54.3]} 29... Ba4 {[%clk 0:00:50.7]} 30. Rd5 {[%clk
0:00:47.9]} 30... b5 {[%clk 0:00:38.8]} 31. Rxc5 {[%clk 0:00:45.2]} 31... bxc4
{[%clk 0:00:39.2]} 32. Rc7+ {[%clk 0:00:44.5]} 32... Kd6 {[%clk 0:00:36.5]} 33.
Rxg7 {[%clk 0:00:44.1]} 33... Rxg7 {[%clk 0:00:37]} 34. Rxh5 {[%clk 0:00:44.2]}
34... Bb3 {[%clk 0:00:37]} 35. Ra5 {[%clk 0:00:43.7]} 35... Rd7 {[%clk
0:00:31.5]} 36. Rxa6+ {[%clk 0:00:42.7]} 36... Ke5 {[%clk 0:00:32.2]} 37. Kg3
{[%clk 0:00:39.2]} 37... Rg7+ {[%clk 0:00:31.3]} 38. Kf2 {[%clk 0:00:39]} 38...
Rd7 {[%clk 0:00:31]} 39. g4 {[%clk 0:00:36.9]} 39... Rd2+ {[%clk 0:00:29.9]} 40.
Kg3 {[%clk 0:00:37.2]} 40... Rxb2 {[%clk 0:00:30.5]} 41. f4+ {[%clk 0:00:37.1]}
41... Ke4 {[%clk 0:00:29]} 42. Re6+ {[%clk 0:00:36.2]} 42... Kd5 {[%clk
0:00:28.9]} 43. Rxf6 {[%clk 0:00:36]} 43... c3 {[%clk 0:00:29.3]} 44. Bg2+
{[%clk 0:00:35.1]} 44... Kc4 {[%clk 0:00:28.1]} 45. Rc6+ {[%clk 0:00:34.2]}
45... Kd3 {[%clk 0:00:27.9]} 46. h5 {[%clk 0:00:28.6]} 46... c2 {[%clk
0:00:27.3]} 47. Rxc2 {[%clk 0:00:28]} 47... Rxc2 {[%clk 0:00:24.2]} 48. g5
{[%clk 0:00:27.6]} 48... Kxe3 {[%clk 0:00:23]} 49. h6 {[%clk 0:00:26.9]} 49...
Bg8 {[%clk 0:00:22.1]} 50. g6 {[%clk 0:00:27.2]} 50... Rc6 {[%clk 0:00:22]} 51.
f5 {[%clk 0:00:26]} 51... Rf6 {[%clk 0:00:21.4]} 52. Kg4 {[%clk 0:00:24.4]}
52... Kf2 {[%clk 0:00:18.8]} 53. Kg5 {[%clk 0:00:24.4]} 53... Rxf5+ {[%clk
0:00:18]} 54. Kxf5 {[%clk 0:00:24.4]} 54... Kxg2 {[%clk 0:00:18.9]} 55. h7
{[%clk 0:00:24.7]} 55... Bxh7 {[%clk 0:00:19.4]} 56. gxh7 {[%clk 0:00:24.9]}
56... Kf2 {[%clk 0:00:20.3]} 57. h8=Q {[%clk 0:00:25.4]} 57... Ke3 {[%clk
0:00:21.2]} 58. Qc3+ {[%clk 0:00:25.3]} 1-0

[Event "*** SCC Grand Prix: Titled Tuesday Blitz"]
[Site "Chess.com"]
[Date "2020.08.04"]
[Round "4"]
[White "JMatias"]
[Black "kosya4ok"]
[Result "0-1"]
[WhiteElo "2408"]
[BlackElo "2720"]
[TimeControl "180+1"]
[EndTime "14:23:11 PDT"]
[Termination "kosya4ok won on time"]

1. e4 {[%clk 0:03:00.9]} 1... e6 {[%clk 0:02:43.2]} 2. d4 {[%clk 0:02:57.5]}
2... d5 {[%clk 0:02:44.1]} 3. Nc3 {[%clk 0:02:56.8]} 3... Bb4 {[%clk 0:02:43.5]}
4. Ne2 {[%clk 0:02:55.9]} 4... dxe4 {[%clk 0:02:40.5]} 5. a3 {[%clk 0:02:56]}
5... Bxc3+ {[%clk 0:02:40.9]} 6. Nxc3 {[%clk 0:02:56.3]} 6... Nf6 {[%clk
0:02:40]} 7. Bg5 {[%clk 0:02:53.6]} 7... h6 {[%clk 0:02:17]} 8. Bh4 {[%clk
0:02:45.6]} 8... Nc6 {[%clk 0:02:08.3]} 9. Bxf6 {[%clk 0:02:05.6]} 9... Qxf6
{[%clk 0:02:03.3]} 10. Bb5 {[%clk 0:02:05.6]} 10... Bd7 {[%clk 0:02:02.3]} 11.
Nxe4 {[%clk 0:02:00.4]} 11... Qg6 {[%clk 0:01:51.9]} 12. Ng3 {[%clk 0:01:51.5]}
12... O-O-O {[%clk 0:01:48.6]} 13. O-O {[%clk 0:01:45.2]} 13... Nxd4 {[%clk
0:01:36.9]} 14. Bd3 {[%clk 0:01:37.7]} 14... Qf6 {[%clk 0:01:31]} 15. Ne4 {[%clk
0:01:37.1]} 15... Qe7 {[%clk 0:01:31.2]} 16. b4 {[%clk 0:01:32.1]} 16... Bc6
{[%clk 0:01:26.8]} 17. Nc5 {[%clk 0:01:31.8]} 17... b6 {[%clk 0:01:20.8]} 18.
Na6 {[%clk 0:01:26.9]} 18... Bb7 {[%clk 0:00:54.6]} 19. Qg4 {[%clk 0:01:03.7]}
19... Rd5 {[%clk 0:00:37.6]} 20. f4 {[%clk 0:00:56.5]} 20... f5 {[%clk
0:00:30.2]} 21. Qg6 {[%clk 0:00:49.9]} 21... Qf6 {[%clk 0:00:24]} 22. Qxf6
{[%clk 0:00:49.1]} 22... gxf6 {[%clk 0:00:24.9]} 23. Rf2 {[%clk 0:00:44]} 23...
h5 {[%clk 0:00:23.7]} 24. a4 {[%clk 0:00:29.7]} 24... h4 {[%clk 0:00:23.4]} 25.
a5 {[%clk 0:00:29.1]} 25... Rg8 {[%clk 0:00:22.4]} 26. axb6 {[%clk 0:00:26.2]}
26... cxb6 {[%clk 0:00:23.3]} 27. c3 {[%clk 0:00:17.1]} 27... Nb3 {[%clk
0:00:19.6]} 28. Bc4 {[%clk 0:00:17.2]} 28... Nxa1 {[%clk 0:00:18.7]} 29. Bxd5
{[%clk 0:00:15.6]} 29... Bxd5 {[%clk 0:00:19.6]} 30. c4 {[%clk 0:00:13.7]} 30...
Be4 {[%clk 0:00:20]} 31. c5 {[%clk 0:00:11.4]} 31... Nc2 {[%clk 0:00:19.3]} 32.
b5 {[%clk 0:00:06.7]} 32... Ne3 {[%clk 0:00:16.2]} 33. c6 {[%clk 0:00:04.6]}
33... Nxg2 {[%clk 0:00:12]} 34. Rd2 {[%clk 0:00:03.5]} 34... Nxf4+ {[%clk
0:00:10.8]} 35. Kf1 {[%clk 0:00:03.8]} 35... Nd5 {[%clk 0:00:09.6]} 0-1

[Event "*** SCC Grand Prix: Titled Tuesday Blitz"]
[Site "Chess.com"]
[Date "2020.08.04"]
[Round "4"]
[White "Firouzja2003"]
[Black "djano"]
[Result "1-0"]
[WhiteElo "3018"]
[BlackElo "2432"]
[TimeControl "180+1"]
[EndTime "14:23:17 PDT"]
[Termination "Firouzja2003 won on time"]

1. d4 {[%clk 0:03:00.9]} 1... g6 {[%clk 0:02:59.6]} 2. e4 {[%clk 0:02:58.8]}
2... Bg7 {[%clk 0:02:59.6]} 3. Nc3 {[%clk 0:02:55]} 3... a6 {[%clk 0:02:58.4]}
4. Be3 {[%clk 0:02:55]} 4... b5 {[%clk 0:02:58.1]} 5. f3 {[%clk 0:02:55.4]} 5...
Bb7 {[%clk 0:02:57.5]} 6. Qd2 {[%clk 0:02:55.4]} 6... d6 {[%clk 0:02:57.2]} 7.
h4 {[%clk 0:02:54.4]} 7... h6 {[%clk 0:02:55]} 8. Nge2 {[%clk 0:02:53.1]} 8...
Nd7 {[%clk 0:02:54.6]} 9. O-O-O {[%clk 0:02:50.5]} 9... Rc8 {[%clk 0:02:53.3]}
10. Kb1 {[%clk 0:02:50.1]} 10... c5 {[%clk 0:02:53.3]} 11. dxc5 {[%clk 0:02:49]}
11... Nxc5 {[%clk 0:02:53.5]} 12. Nf4 {[%clk 0:02:33.4]} 12... Nf6 {[%clk
0:02:42.2]} 13. e5 {[%clk 0:02:13.4]} 13... dxe5 {[%clk 0:02:06.7]} 14. Qxd8+
{[%clk 0:02:14.3]} 14... Rxd8 {[%clk 0:02:06.9]} 15. Rxd8+ {[%clk 0:02:15.2]}
15... Kxd8 {[%clk 0:02:07.6]} 16. Nxg6 {[%clk 0:02:16.1]} 16... fxg6 {[%clk
0:02:02.7]} 17. Bxc5 {[%clk 0:02:16.2]} 17... e4 {[%clk 0:01:53.7]} 18. Be2
{[%clk 0:02:15.3]} 18... exf3 {[%clk 0:01:51.6]} 19. gxf3 {[%clk 0:02:07.7]}
19... Kc7 {[%clk 0:01:32.1]} 20. Rg1 {[%clk 0:01:49.8]} 20... g5 {[%clk
0:01:25.1]} 21. hxg5 {[%clk 0:01:46.8]} 21... hxg5 {[%clk 0:01:26]} 22. Rxg5
{[%clk 0:01:46.9]} 22... Rh1+ {[%clk 0:01:22.9]} 23. Rg1 {[%clk 0:01:41.6]}
23... Rxg1+ {[%clk 0:01:22.5]} 24. Bxg1 {[%clk 0:01:42.5]} 24... Nd5 {[%clk
0:01:15.9]} 25. Bh2+ {[%clk 0:01:38.1]} 25... Kd7 {[%clk 0:01:13.8]} 26. Ne4
{[%clk 0:01:38.3]} 26... Bd4 {[%clk 0:01:10]} 27. Bf1 {[%clk 0:01:37.2]} 27...
Ne3 {[%clk 0:00:46.3]} 28. Bh3+ {[%clk 0:01:36.2]} 28... Ke8 {[%clk 0:00:39.1]}
29. c3 {[%clk 0:01:07.4]} 29... Bb6 {[%clk 0:00:28.3]} 30. Be6 {[%clk 0:00:59]}
30... Bd5 {[%clk 0:00:24.3]} 31. Bxd5 {[%clk 0:00:57.2]} 31... Nxd5 {[%clk
0:00:25.2]} 32. Kc2 {[%clk 0:00:56.2]} 32... Kf7 {[%clk 0:00:21.3]} 33. Kd3
{[%clk 0:00:55.6]} 33... Kg6 {[%clk 0:00:18.5]} 34. a3 {[%clk 0:00:50.6]} 34...
Kf5 {[%clk 0:00:16.8]} 35. b3 {[%clk 0:00:45.3]} 35... e5 {[%clk 0:00:12.8]} 36.
c4 {[%clk 0:00:42.9]} 36... bxc4+ {[%clk 0:00:12.1]} 37. bxc4 {[%clk 0:00:43.8]}
37... Nf4+ {[%clk 0:00:12.4]} 38. Bxf4 {[%clk 0:00:36.3]} 38... Kxf4 {[%clk
0:00:08.8]} 39. c5 {[%clk 0:00:36.8]} 39... Bc7 {[%clk 0:00:07]} 40. Ke2 {[%clk
0:00:22.5]} 40... Kf5 {[%clk 0:00:06.8]} 41. Nc3 {[%clk 0:00:19.3]} 41... Ba5
{[%clk 0:00:03.4]} 42. Nd5 {[%clk 0:00:17.9]} 42... Ke6 {[%clk 0:00:02.4]} 43.
Nb4 {[%clk 0:00:16.6]} 1-0

[Event "*** SCC Grand Prix: Titled Tuesday Blitz"]
[Site "Chess.com"]
[Date "2020.08.04"]
[Round "4"]
[White "kleopl"]
[Black "KyrgyzFighter"]
[Result "0-1"]
[WhiteElo "2455"]
[BlackElo "2313"]
[TimeControl "180+1"]
[EndTime "14:23:18 PDT"]
[Termination "KyrgyzFighter won by checkmate"]

1. c4 {[%clk 0:03:00.9]} 1... Nf6 {[%clk 0:02:55.5]} 2. Nc3 {[%clk 0:03:00.4]}
2... d6 {[%clk 0:02:55.4]} 3. g3 {[%clk 0:02:57.4]} 3... e5 {[%clk 0:02:53.5]}
4. Bg2 {[%clk 0:02:57.3]} 4... Nbd7 {[%clk 0:02:53.6]} 5. d3 {[%clk 0:02:55.2]}
5... Be7 {[%clk 0:02:53.8]} 6. e3 {[%clk 0:02:49.4]} 6... c6 {[%clk 0:02:53.6]}
7. Nge2 {[%clk 0:02:48.6]} 7... O-O {[%clk 0:02:52.8]} 8. b4 {[%clk 0:02:47]}
8... a6 {[%clk 0:02:26.2]} 9. Rb1 {[%clk 0:02:43.2]} 9... Re8 {[%clk 0:02:25.9]}
10. O-O {[%clk 0:02:42.7]} 10... Nf8 {[%clk 0:02:25.3]} 11. a4 {[%clk
0:02:40.7]} 11... Qc7 {[%clk 0:02:21.5]} 12. b5 {[%clk 0:02:36.8]} 12... Bf5
{[%clk 0:02:19.6]} 13. e4 {[%clk 0:02:23.4]} 13... Bg6 {[%clk 0:02:17.1]} 14. h3
{[%clk 0:02:18.5]} 14... Ne6 {[%clk 0:02:07.5]} 15. f4 {[%clk 0:02:14.6]} 15...
exf4 {[%clk 0:02:03.5]} 16. gxf4 {[%clk 0:02:03]} 16... Bh5 {[%clk 0:02:02.1]}
17. Qd2 {[%clk 0:02:01.6]} 17... Rad8 {[%clk 0:01:26.7]} 18. Ng3 {[%clk
0:02:00.3]} 18... Nd4 {[%clk 0:01:11.5]} 19. Qf2 {[%clk 0:01:50.4]} 19... d5
{[%clk 0:00:51]} 20. e5 {[%clk 0:01:39.9]} 20... Ne6 {[%clk 0:00:50.7]} 21. b6
{[%clk 0:01:21.3]} 21... Qc8 {[%clk 0:00:46.2]} 22. exf6 {[%clk 0:00:49.5]}
22... Bc5 {[%clk 0:00:45.1]} 23. Be3 {[%clk 0:00:44.3]} 23... d4 {[%clk
0:00:44.2]} 24. Nxh5 {[%clk 0:00:25]} 24... dxe3 {[%clk 0:00:44.1]} 25. Qe2
{[%clk 0:00:25.3]} 25... Nd4 {[%clk 0:00:40.8]} 26. Qg4 {[%clk 0:00:21.5]} 26...
Qxg4 {[%clk 0:00:38.6]} 27. hxg4 {[%clk 0:00:22.4]} 27... e2 {[%clk 0:00:36.8]}
28. Rfe1 {[%clk 0:00:17.1]} 28... Nf3+ {[%clk 0:00:34.5]} 29. Kh1 {[%clk
0:00:17.5]} 29... Nxe1 {[%clk 0:00:33.4]} 30. Rxe1 {[%clk 0:00:18.4]} 30... g6
{[%clk 0:00:32.9]} 31. Ng3 {[%clk 0:00:17.8]} 31... Bf2 {[%clk 0:00:33.1]} 32.
Rxe2 {[%clk 0:00:17.7]} 32... Bxg3 {[%clk 0:00:33.1]} 33. Ne4 {[%clk 0:00:17.3]}
33... Bxf4 {[%clk 0:00:32.4]} 34. Rf2 {[%clk 0:00:15]} 34... Be3 {[%clk
0:00:30.8]} 35. Rf3 {[%clk 0:00:15.4]} 35... Rxd3 {[%clk 0:00:28]} 36. Kh2
{[%clk 0:00:15.2]} 36... Rxe4 {[%clk 0:00:26.9]} 37. Rf1 {[%clk 0:00:14.7]}
37... Rxg4 {[%clk 0:00:25.4]} 38. Bf3 {[%clk 0:00:10.6]} 38... Rh4+ {[%clk
0:00:22.8]} 39. Kg3 {[%clk 0:00:10.7]} 39... Rxc4 {[%clk 0:00:23.4]} 40. Ra1
{[%clk 0:00:09]} 40... Bxb6 {[%clk 0:00:22.6]} 41. Rb1 {[%clk 0:00:08.5]} 41...
Bc7+ {[%clk 0:00:22]} 42. Kf2 {[%clk 0:00:07.8]} 42... Rd2+ {[%clk 0:00:20.3]}
43. Ke1 {[%clk 0:00:07.2]} 43... Rh2 {[%clk 0:00:19.3]} 44. Rxb7 {[%clk
0:00:06.6]} 44... Rc1+ {[%clk 0:00:16]} 45. Bd1 {[%clk 0:00:06.9]} 45... Bg3+
{[%clk 0:00:16.1]} 46. Kf1 {[%clk 0:00:05.7]} 46... Rxd1# {[%clk 0:00:16.3]} 0-1